bitfinex-derivatives/quotes_SOLF0:USTF0_20250323
["timestamp","ask_amount","ask_price","bid_price","bid_amount"]
[1742748355402,0.05453358,132.19,132.17,17.38314799]
[1742748357399,0.05453358,132.19,132.18,17.32732368]
[1742748357795,0.05453358,132.19,132.18,9.76052368]
[1742748357998,0.05453358,132.19,132.17,9.81614799]
[1742748358191,0.05453358,132.19,132.17,0.05562431]
[1742748358696,7.5668,132.18,132.17,0.05562431]
[1742748358897,0.05453358,132.19,132.17,0.05562431]
[1742748360097,7.62103358,132.19,132.17,0.05562431]
[1742748360304,0.05453358,132.19,132.17,9.81614799]
[1742748360800,0.05453358,132.19,132.18,44.42732368]
[1742748363303,17.32422368,132.24,132.21,7.565]
[1742748363494,7.564,132.23,132.21,17.32552368]
[1742748363692,7.564,132.23,132.2,9.76052368]
[1742748363902,7.564,132.23,132.2,17.32582368]
[1742748364405,7.62213619,132.23,132.2,17.38127619]
[1742748364901,0.05813619,132.23,132.2,17.38127619]
[1742748365100,9.81865987,132.23,132.2,0.05545251]
[1742748365704,7.565,132.21,132.2,0.05545251]
[1742748366506,17.32522368,132.22,132.2,0.05545251]
[1742748366706,7.5647,132.22,132.2,0.05545251]
[1742748368807,7.565,132.21,132.2,0.05545251]
[1742748369403,7.5648,132.22,132.2,0.05545251]
[1742748370709,0.05813619,132.23,132.2,9.81597619]
[1742748370908,0.05813619,132.23,132.21,9.76052368]
[1742748371209,7.62203619,132.23,132.2,17.38137619]
[1742748374313,9.81865987,132.23,132.2,0.05545251]
[1742748375214,7.565,132.21,132.2,0.05545251]
[1742748375612,17.32552368,132.21,132.2,0.05545251]
[1742748377323,7.565,132.21,132.2,0.05545251]
[1742748377923,17.32532368,132.22,132.2,0.05545251]
[1742748378124,9.81865987,132.23,132.2,0.05545251]
[1742748378521,17.38285987,132.23,132.2,7.62065251]
[1742748378722,0.05813619,132.23,132.2,0.05545251]
[1742748378922,0.05813619,132.23,132.2,9.81597619]
[1742748379225,0.05813619,132.23,132.21,7.5647]
[1742748379426,0.05813619,132.23,132.2,9.81597619]
[1742748379625,7.62203619,132.23,132.2,17.38107619]
[1742748380726,0.05813619,132.23,132.21,7.5649]
[1742748381827,0.05813619,132.23,132.22,7.5645]
[1742748382426,0.05813619,132.23,132.21,17.32522368]
[1742748383527,0.05813619,132.23,132.21,9.76052368]
[1742748383729,0.05813619,132.23,132.2,44.48127619]
[1742748384120,7.62263619,132.23,132.2,36.91597619]
[1742748384627,7.5645,132.22,132.2,36.91597619]
[1742748386029,7.565,132.21,132.2,27.15545251]
[1742748386431,7.565,132.21,132.2,0.05545251]
[1742748390639,17.32552368,132.21,132.2,0.05545251]
[1742748392041,17.32532368,132.22,132.2,0.05545251]
[1742748393328,7.5648,132.22,132.2,0.05545251]
[1742748394240,17.38285987,132.23,132.2,7.62095251]
[1742748394637,9.81865987,132.23,132.2,7.62095251]
[1742748395140,7.62213619,132.23,132.2,7.62095251]
[1742748398737,0.05813619,132.23,132.2,9.81597619]
[1742748399338,0.05813619,132.23,132.21,7.565]
[1742748400330,0.05813619,132.23,132.2,17.38127619]
[1742748400935,9.76052368,132.22,132.2,0.05545251]
[1742748401535,17.32552368,132.22,132.2,0.05545251]
[1742748402540,7.565,132.21,132.2,0.05545251]
[1742748403139,17.32522368,132.22,132.2,0.05545251]
[1742748407847,7.5647,132.22,132.2,0.05545251]
[1742748408048,7.62223619,132.23,132.2,7.62095251]
[1742748408249,7.62223619,132.23,132.2,17.38147619]
[1742748408550,17.38275987,132.23,132.2,7.62095251]
[1742748408950,0.05813619,132.23,132.21,9.76052368]
[1742748409351,0.05813619,132.23,132.22,7.5645]
[1742748410150,9.81865987,132.23,132.21,7.5648]
[1742748410452,9.81865987,132.23,132.2,9.81597619]
[1742748410652,0.05813619,132.23,132.2,9.81597619]
[1742748410851,0.05813619,132.23,132.21,7.565]
[1742748412154,0.05813619,132.23,132.22,7.5645]
[1742748412950,0.05813619,132.23,132.21,7.5648]
[1742748414955,0.05813619,132.23,132.22,7.5645]
[1742748415951,0.05813619,132.23,132.21,34.6448]
[1742748416752,7.62203619,132.23,132.21,34.6448]
[1742748416949,17.38255987,132.23,132.21,27.08]
[1742748419255,17.38255987,132.23,132.2,7.62095251]
[1742748420354,7.62203619,132.23,132.2,7.62095251]
[1742748421158,7.5645,132.22,132.2,7.62095251]
[1742748421459,7.5645,132.22,132.2,17.38147619]
[1742748421760,7.565,132.21,132.2,0.05545251]
[1742748422561,17.32552368,132.21,132.2,0.05545251]
[1742748423564,7.5663,132.19,132.16,17.32822368]
[1742748424763,7.61679625,132.19,132.16,17.38162234]
[1742748424961,7.5668,132.18,132.16,17.38162234]
[1742748425159,9.81101993,132.19,132.16,0.05339866]
[1742748425864,17.37751993,132.19,132.16,7.62119866]
[1742748429265,9.81101993,132.19,132.17,7.5673]
[1742748429464,9.81101993,132.19,132.16,0.05339866]
[1742748430467,0.05049625,132.19,132.16,9.81392234]
[1742748430765,0.05049625,132.19,132.17,9.76052368]
[1742748431267,0.05049625,132.19,132.18,7.5668]
[1742748432489,0.05049625,132.19,132.18,17.32732368]
[1742748432668,0.05049625,132.19,132.18,7.5668]
[1742748433968,0.05049625,132.19,132.18,44.40732368]
[1742748438872,359.0,132.22,132.21,7.565]
[1742748439066,9.76052368,132.25,132.21,36.84052368]
[1742748439271,9.76052368,132.25,132.22,9.76052368]
[1742748439570,9.76052368,132.24,132.21,27.08]
[1742748439776,9.76052368,132.23,132.19,36.84052368]
[1742748439966,9.76052368,132.23,132.21,0.05536295]
[1742748440362,17.32482368,132.23,132.21,0.05536295]
[1742748441173,7.5645,132.22,132.21,0.05536295]
[1742748441373,17.32502368,132.22,132.21,0.05536295]
[1742748443074,7.566,132.2,132.17,36.84052368]
[1742748443372,17.32652368,132.2,132.17,36.84052368]
[1742748443866,17.32652368,132.2,132.17,9.76052368]
[1742748444064,17.32672368,132.19,132.16,36.84052368]
[1742748444270,17.32672368,132.19,132.17,0.05608899]
[1742748446480,0.05285871,132.2,132.18,9.76052368]
[1742748448471,0.05285871,132.2,132.19,17.32672368]
[1742748449275,0.05285871,132.2,132.19,44.40672368]
[1742748456778,0.05285871,132.2,132.19,36.84052368]
[1742748456982,0.05285871,132.2,132.19,27.08]
[1742748457181,0.05285871,132.2,132.18,17.32702368]
[1742748458286,0.05285871,132.2,132.19,17.32672368]
[1742748459783,5.871e-05,132.2,132.19,17.32672368]
[1742748460184,359.0,132.23,132.22,7.5645]
[1742748460383,34.6431,132.25,132.22,17.32502368]
[1742748460586,34.6431,132.25,132.23,9.76052368]
[1742748460784,34.6431,132.25,132.22,17.32502368]
[1742748461386,34.69176304,132.25,132.22,17.37956372]
[1742748461784,0.04866304,132.25,132.23,17.32402368]
[1742748461984,0.04866304,132.25,132.23,9.76052368]
[1742748463792,0.04866304,132.25,132.23,7.5636]
[1742748463992,9.76052368,132.24,132.22,0.05454004]
[1742748464193,17.37218672,132.25,132.22,7.61894004]
[1742748464391,7.61166304,132.25,132.22,17.37946372]
[1742748464992,0.04866304,132.25,132.23,9.76052368]
[1742748465597,0.04866304,132.25,132.24,7.5633]
[1742748465896,0.04866304,132.25,132.23,9.76052368]
[1742748466192,0.04866304,132.25,132.24,7.5633]
[1742748466394,0.04866304,132.25,132.22,9.81506372]
[1742748466596,0.04866304,132.25,132.23,7.5637]
[1742748467993,17.37198672,132.25,132.22,7.61864004]
[1742748469293,7.5634,132.24,132.22,0.05454004]
[1742748471187,0.04866304,132.25,132.22,9.81506372]
[1742748471697,0.04866304,132.25,132.23,7.5636]
[1742748473389,7.61146304,132.25,132.23,7.5636]
[1742748473999,0.04866304,132.25,132.23,7.5636]
[1742748474599,7.61156304,132.25,132.22,17.37926372]
[1742748474904,9.76052368,132.24,132.22,0.05454004]
[1742748475399,7.5639,132.23,132.22,0.05454004]
[1742748477000,17.32412368,132.24,132.22,0.05454004]
[1742748478106,7.5639,132.23,132.22,0.05454004]
[1742748478699,9.80918672,132.25,132.22,0.05454004]
[1742748478902,7.5636,132.24,132.22,0.05454004]
[1742748480101,17.37218672,132.25,132.22,7.61894004]
[1742748480910,0.04866304,132.25,132.22,9.81506372]
[1742748482307,0.04866304,132.25,132.24,7.5633]
[1742748482498,359.0,132.28,132.24,36.82052368]
[1742748482701,10.69419265,132.3,132.27,17.32172368]
[1742748482900,9.76052368,132.31,132.27,9.76052368]
[1742748483103,400.95014145,132.32,132.28,9.76052368]
[1742748483304,400.95014145,132.32,132.3,17.32012368]
[1742748483505,400.95014145,132.32,132.3,7.5596]
[1742748483702,9.76052368,132.31,132.3,0.05176922]
[1742748484106,17.31982368,132.31,132.3,0.05176922]
[1742748484300,410.76661343,132.32,132.3,0.05176922]
[1742748484608,418.32571343,132.32,132.3,0.05176922]
[1742748484909,9.76052368,132.31,132.3,0.05176922]
[1742748485305,17.31982368,132.31,132.3,0.05176922]
[1742748486609,17.31982368,132.31,132.22,9.76052368]
[1742748486610,359.0,132.3,132.22,9.76052368]
[1742748486799,9.76052368,132.28,132.24,9.76052368]
[1742748486999,9.76052368,132.29,132.25,9.76052368]
[1742748487204,361.0906,132.3,132.24,27.06]
[1742748487205,359.0,132.3,132.27,9.76052368]
[1742748487405,9.76052368,132.31,132.27,36.82052368]
[1742748487803,0.04862953,132.3,132.28,0.05073689]
[1742748489412,7.60852953,132.3,132.28,0.05073689]
[1742748489628,0.04862953,132.3,132.29,17.32102368]
[1742748489914,0.04862953,132.3,132.29,9.76052368]
[1742748490114,0.04862953,132.3,132.28,17.37206057]
[1742748490416,9.80915321,132.3,132.28,0.05073689]
[1742748490616,0.04862953,132.3,132.28,0.05073689]
[1742748491615,7.60872953,132.3,132.28,0.05073689]
[1742748492115,0.04862953,132.3,132.28,9.81126057]
[1742748492318,361.0906,132.35,132.29,9.76052368]
[1742748492319,368.76052368,132.35,132.29,9.76052368]
[1742748492617,368.76052368,132.35,132.31,9.76052368]
[1742748493416,376.31762368,132.35,132.31,17.31962368]
[1742748493719,0.05181912,132.34,132.32,0.05645224]
[1742748493912,9.8123428,132.34,132.32,0.05645224]
[1742748494315,17.3703428,132.34,132.32,0.05645224]
[1742748494614,9.76052368,132.33,132.32,0.05645224]
[1742748494916,9.76052368,132.33,132.27,27.06]
[1742748495120,9.76052368,132.29,132.27,27.06]
[1742748495517,17.32142368,132.29,132.27,27.06]
[1742748495714,9.76052368,132.29,132.27,27.06]
[1742748495914,9.76052368,132.28,132.23,9.76052368]
[1742748496117,17.32262368,132.27,132.24,34.623]
[1742748496317,9.76052368,132.28,132.24,36.87829316]
[1742748496518,0.04803958,132.27,132.24,36.87829316]
[1742748496719,0.04803958,132.27,132.25,7.5627]
[1742748497941,0.04803958,132.27,132.26,7.5622]
[1742748498116,0.04803958,132.27,132.26,17.32272368]
[1742748500324,0.04803958,132.27,132.25,9.76052368]
[1742748500522,7.60993958,132.27,132.24,36.87829316]
[1742748501325,0.04803958,132.27,132.25,17.32322368]
[1742748502730,0.04803958,132.27,132.25,7.5627]
[1742748503431,0.04803958,132.27,132.26,7.5622]
[1742748504732,0.04803958,132.27,132.25,17.32302368]
[1742748505528,0.04803958,132.27,132.26,7.5622]
[1742748506031,0.04803958,132.27,132.25,44.38282368]
[1742748506430,9.80856326,132.27,132.24,0.05776948]
[1742748506628,9.76052368,132.26,132.24,0.05776948]
[1742748507630,9.80856326,132.27,132.24,9.81829316]
[1742748508031,0.04803958,132.27,132.24,9.81829316]
[1742748508538,0.04803958,132.27,132.25,9.76052368]
[1742748508736,0.04803958,132.27,132.25,17.32302368]
[1742748509137,0.04803958,132.27,132.25,9.76052368]
[1742748509334,0.04803958,132.27,132.26,7.5622]
[1742748510541,0.04803958,132.27,132.26,17.32272368]
[1742748511240,0.04803958,132.27,132.26,7.5622]
[1742748511436,0.04803958,132.27,132.24,27.11776948]
[1742748511633,0.04803958,132.27,132.24,36.87829316]
[1742748511834,9.80856326,132.27,132.24,0.05776948]
[1742748512232,17.32312368,132.26,132.24,0.05776948]
[1742748512436,7.5626,132.26,132.24,0.05776948]
[1742748512741,7.5627,132.25,132.24,0.05776948]
[1742748513445,17.32322368,132.25,132.24,0.05776948]
[1742748515043,9.76052368,132.25,132.24,0.05776948]
[1742748515634,17.32322368,132.25,132.24,0.05776948]
[1742748516433,7.565,132.22,132.19,36.82052368]
[1742748516838,7.565,132.22,132.19,44.38632368]
[1742748517750,7.62301451,132.22,132.19,44.44276126]
[1742748517947,7.5651,132.21,132.19,44.44276126]
[1742748518148,0.05801451,132.22,132.19,44.44276126]
[1742748518750,7.62271451,132.22,132.2,7.5655]
[1742748519550,0.05801451,132.22,132.2,7.5655]
[1742748519748,0.05801451,132.22,132.21,7.565]
[1742748526651,0.05801451,132.22,132.19,0.05643758]
[1742748527057,0.05801451,132.22,132.19,15.19519561]
[1742748527255,0.05801451,132.22,132.21,7.565]
[1742748530160,0.05801451,132.22,132.2,7.5653]
[1742748530557,0.05801451,132.22,132.19,42.25519561]
[1742748531261,0.05801451,132.22,132.21,7.565]
[1742748540473,0.05801451,132.22,132.21,17.25254682]
[1742748541366,0.05801451,132.22,132.19,27.11643758]
[1742748541367,9.74556133,132.22,132.19,27.11643758]
[1742748541561,9.68754682,132.21,132.19,27.11643758]
[1742748541868,17.25314682,132.2,132.19,0.05643758]
[1742748542069,17.25314682,132.2,132.16,27.06]
[1742748542070,9.68754682,132.2,132.16,27.06]
[1742748542268,9.68754682,132.19,132.15,9.68754682]
[1742748542470,7.5671,132.18,132.15,17.25574682]
[1742748543371,7.61789642,132.18,132.15,17.31020866]
[1742748543674,7.5673,132.17,132.15,17.31020866]
[1742748544172,0.05079642,132.18,132.15,17.31020866]
[1742748544575,9.68754682,132.17,132.15,0.05446184]
[1742748545175,7.5676,132.17,132.15,0.05446184]
[1742748545375,9.73834324,132.18,132.15,0.05446184]
[1742748545576,17.30544324,132.18,132.15,7.62266184]
[1742748545775,9.73834324,132.18,132.15,0.05446184]
[1742748546273,0.05079642,132.18,132.15,0.05446184]
[1742748546473,0.05079642,132.18,132.15,9.74200866]
[1742748546669,0.05079642,132.18,132.17,7.5673]
[1742748546878,0.05079642,132.18,132.17,44.31484682]
[1742748547277,359.0,132.23,132.17,36.74754682]
[1742748547476,9.68754682,132.25,132.21,9.68754682]
[1742748547771,36.76754682,132.26,132.22,9.68754682]
[1742748547979,27.08,132.26,132.23,17.25114682]
[1742748548176,9.68754682,132.26,132.23,17.25114682]
[1742748548371,0.05505902,132.26,132.23,7.61841489]
[1742748548576,9.74260584,132.26,132.23,0.05481489]
[1742748548778,9.74260584,132.26,132.23,9.74236171]
[1742748548978,0.05505902,132.26,132.23,0.05481489]
[1742748549178,0.05505902,132.26,132.23,7.61831489]
[1742748549179,7.61745902,132.26,132.23,7.61831489]
[1742748550169,7.5629,132.25,132.23,0.05481489]
[1742748550680,7.5633,132.24,132.23,0.05481489]
[1742748550877,42.27096223,132.25,132.17,42.27096223]
[1742748551378,7.5654,132.21,132.18,7.5664]
[1742748551975,7.6235852,132.21,132.18,0.05717919]
[1742748552574,7.6235852,132.21,132.18,7.62367919]
[1742748552780,7.6235852,132.21,132.18,0.05717919]
[1742748553281,0.0581852,132.21,132.19,15.13096223]
[1742748553580,0.0581852,132.21,132.2,27.16]
[1742748553982,0.0581852,132.21,132.2,34.7256]
[1742748554783,0.0581852,132.21,132.2,7.5656]
[1742748555878,0.0581852,132.21,132.19,7.5659]
[1742748557189,7.6234852,132.21,132.18,34.78377919]
[1742748557584,0.0581852,132.21,132.18,0.05717919]
[1742748558389,7.5661,132.2,132.18,0.05717919]
[1742748558991,7.5662,132.19,132.18,0.05717919]
[1742748559287,27.16,132.19,132.13,276.74]
[1742748559586,27.16,132.19,132.13,284.3091]
[1742748560284,7.5681,132.16,132.15,0.05500965]
[1742748567684,34.7081,132.16,132.15,0.05500965]
[1742748572590,0.0516189,132.17,132.15,0.05500965]
[1742748572996,0.0516189,132.17,132.15,7.62310965]
[1742748574497,7.6190189,132.17,132.15,7.62310965]
[1742748575599,7.6190189,132.17,132.15,0.05500965]
[1742748576111,7.5679,132.16,132.15,0.05500965]
[1742748577796,34.6679,132.16,132.15,0.05500965]
[1742748578001,7.5697,132.13,132.11,7.5705]
[1742748578402,7.5693,132.14,132.12,7.5701]
[1742748579102,7.6252378,132.14,132.12,7.62481974]
[1742748580512,7.6252378,132.14,132.12,0.05471974]
[1742748582413,0.0559378,132.14,132.13,44.35021965]
[1742748585913,0.0559378,132.14,132.13,27.08]
[1742748586216,0.0559378,132.14,132.12,7.62461974]
[1742748586817,7.6250378,132.14,132.12,7.62461974]
[1742748587115,0.0559378,132.14,132.12,7.62461974]
[1742748587417,0.0559378,132.14,132.13,7.5696]
[1742748588118,9.75655745,132.14,132.12,0.05471974]
[1742748589018,17.32585745,132.14,132.12,0.05471974]
[1742748589316,0.0559378,132.14,132.12,0.05471974]
[1742748589619,0.0559378,132.14,132.13,7.5696]
[1742748590813,0.0559378,132.14,132.12,7.62461974]
[1742748591412,0.0559378,132.14,132.13,7.5696]
[1742748592019,0.0559378,132.14,132.12,7.62451974]
[1742748592217,0.0559378,132.14,132.12,0.05471974]
[1742748593118,0.0559378,132.14,132.13,7.5696]
[1742748597114,9.75655745,132.14,132.12,0.05471974]
[1742748598223,17.27021965,132.13,132.12,0.05471974]
[1742748598925,44.35021965,132.13,132.12,0.05471974]
[1742748599417,44.35021965,132.13,132.06,20.20544268]
[1742748599418,36.78061965,132.13,132.06,20.20544268]
[1742748599631,9.70061965,132.11,132.08,7.5725]
[1742748600425,9.75613768,132.11,132.08,7.62512197]
[1742748600624,17.32713768,132.11,132.08,7.62512197]
[1742748601222,17.32713768,132.11,132.08,0.05262197]
[1742748601425,9.70061965,132.09,132.08,0.05262197]
[1742748601923,17.27251965,132.09,132.08,0.05262197]
[1742748602624,36.78061965,132.1,132.08,0.05262197]
[1742748603623,36.78061965,132.1,132.08,7.62512197]
[1742748604131,9.70061965,132.09,132.08,0.05262197]
[1742748605222,36.78061965,132.1,132.08,0.05262197]
[1742748605526,36.78061965,132.1,132.08,7.62472197]
[1742748605826,9.70061965,132.1,132.08,7.62472197]
[1742748607227,9.70061965,132.09,132.08,7.62472197]
[1742748607526,9.70061965,132.09,132.08,0.05262197]
[1742748607735,17.27251965,132.09,132.08,0.05262197]
[1742748607928,9.70061965,132.09,132.08,0.05262197]
[1742748609226,9.70061965,132.09,132.08,7.62512197]
[1742748611528,9.70061965,132.1,132.08,7.62512197]
[1742748611728,9.70061965,132.09,132.08,0.05262197]
[1742748613635,17.27251965,132.09,132.08,0.05262197]
[1742748614029,27.13551803,132.11,132.08,0.05262197]
[1742748614235,0.05551803,132.11,132.08,9.75324162]
[1742748614529,0.05551803,132.11,132.09,9.70061965]
[1742748614735,0.05551803,132.11,132.08,9.75324162]
[1742748615334,0.05551803,132.11,132.1,7.5713]
[1742748615529,27.08,132.18,132.1,9.70061965]
[1742748615729,36.78061965,132.18,132.13,9.70061965]
[1742748615930,7.5677,132.17,132.14,7.5687]
[1742748616127,17.26831965,132.17,132.14,7.5687]
[1742748616327,7.5679,132.16,132.13,7.5693]
[1742748616534,9.70061965,132.17,132.13,9.70061965]
[1742748616739,0.05250246,132.16,132.13,9.74876164]
[1742748617034,0.05250246,132.16,132.14,7.5685]
[1742748617738,0.05250246,132.16,132.15,7.5685]
[1742748617937,9.75312211,132.16,132.13,0.04814199]
[1742748618126,9.75312211,132.16,132.14,7.5687]
[1742748619235,17.32102211,132.16,132.14,7.5687]
[1742748619834,17.32102211,132.16,132.13,7.61754199]
[1742748620234,9.70061965,132.15,132.13,0.04814199]
[1742748620637,0.05250246,132.16,132.13,0.04814199]
[1742748620835,9.75312211,132.16,132.13,0.04814199]
[1742748621036,9.75312211,132.16,132.14,7.5689]
[1742748621536,17.32112211,132.16,132.14,7.5689]
[1742748622245,17.32112211,132.16,132.13,7.61764199]
[1742748622745,9.75312211,132.16,132.13,0.04814199]
[1742748623342,17.32102211,132.16,132.14,7.5689]
[1742748623542,9.75312211,132.16,132.14,7.5689]
[1742748624444,17.32112211,132.16,132.14,7.5689]
[1742748625241,0.05250246,132.16,132.14,7.5689]
[1742748625544,0.05250246,132.16,132.15,7.5685]
[1742748626540,0.05250246,132.16,132.15,17.26911965]
[1742748626946,9.70061965,132.21,132.19,7.566]
[1742748627341,44.34531965,132.22,132.19,7.566]
[1742748628140,17.3141517,132.22,132.19,7.61381763]
[1742748628343,9.70061965,132.21,132.19,7.61381763]
[1742748628548,0.04883205,132.22,132.19,7.61381763]
[1742748628747,9.7494517,132.22,132.19,7.61381763]
[1742748628942,9.70061965,132.21,132.19,0.04781763]
[1742748629447,17.26601965,132.21,132.19,0.04781763]
[1742748630047,17.26621965,132.2,132.19,0.04781763]
[1742748632553,17.26581965,132.21,132.19,0.04781763]
[1742748632851,9.70061965,132.2,132.19,0.04781763]
[1742748633249,9.7494517,132.22,132.19,0.04781763]
[1742748633649,17.3140517,132.22,132.19,7.61361763]
[1742748633841,17.3140517,132.22,132.19,34.69361763]
[1742748634456,0.04883205,132.22,132.2,7.5656]
[1742748634654,0.04883205,132.22,132.2,9.70061965]
[1742748635859,0.04883205,132.22,132.2,17.26591965]
[1742748636064,0.04883205,132.22,132.2,9.70061965]
[1742748636263,0.04883205,132.22,132.19,36.82843728]
[1742748636666,7.5656,132.21,132.19,27.12781763]
[1742748637070,0.04883205,132.22,132.19,36.82843728]
[1742748637371,0.04883205,132.22,132.19,44.39403728]
[1742748637571,0.04883205,132.22,132.19,36.82843728]
[1742748637763,0.04883205,132.22,132.2,7.5655]
[1742748639472,0.04883205,132.22,132.21,17.26561965]
[1742748641673,0.04883205,132.22,132.21,9.70061965]
[1742748641869,0.04883205,132.22,132.2,9.70061965]
[1742748642065,0.04883205,132.22,132.19,36.82843728]
[1742748642271,7.61343205,132.22,132.19,44.39433728]
[1742748645475,7.61343205,132.22,132.2,17.26621965]
[1742748645672,7.61343205,132.22,132.2,9.70061965]
[1742748646279,0.04883205,132.22,132.2,9.70061965]
[1742748646673,0.04883205,132.22,132.2,17.26621965]
[1742748647081,0.04883205,132.22,132.2,9.70061965]
[1742748648070,0.04883205,132.22,132.21,7.565]
[1742748648978,0.04883205,132.22,132.21,17.26561965]
[1742748649180,0.04883205,132.22,132.2,17.26591965]
[1742748649478,0.04883205,132.22,132.19,36.82843728]
[1742748649681,9.7494517,132.22,132.19,27.12781763]
[1742748650075,7.5654,132.21,132.19,27.12781763]
[1742748650278,7.5654,132.21,132.19,0.04781763]
[1742748650476,9.70061965,132.2,132.19,0.04781763]
[1742748650878,17.26621965,132.2,132.19,0.04781763]
[1742748652778,7.5656,132.2,132.19,0.04781763]
[1742748654180,36.82061965,132.21,132.19,0.04781763]
[1742748654574,44.38561965,132.21,132.19,0.04781763]
[1742748654779,27.12,132.21,132.19,7.61401763]
[1742748655086,17.3142517,132.22,132.19,7.61401763]
[1742748655301,9.7494517,132.22,132.19,0.04781763]
[1742748655585,7.5653,132.21,132.19,0.04781763]
[1742748655784,17.26591965,132.21,132.19,0.04781763]
[1742748656486,7.5656,132.2,132.19,0.04781763]
[1742748656886,17.26621965,132.2,132.19,0.04781763]
[1742748659187,44.36621965,132.2,132.19,0.04781763]
[1742748659894,7.5684,132.16,132.13,36.78061965]
[1742748660489,17.26711965,132.19,132.15,9.70061965]
[1742748661091,0.05505423,132.18,132.16,0.05552704]
[1742748661589,0.05505423,132.18,132.16,9.75614669]
[1742748662493,0.05505423,132.18,132.16,0.05552704]
[1742748663081,7.62195423,132.18,132.16,0.05552704]
[1742748664892,7.5673,132.17,132.16,0.05552704]
[1742748665894,17.26791965,132.17,132.16,0.05552704]
[1742748668598,7.5673,132.17,132.16,0.05552704]
[1742748675196,17.26791965,132.17,132.16,0.05552704]
[1742748676600,7.5673,132.17,132.16,0.05552704]
[1742748684105,7.62215423,132.18,132.16,0.05552704]
[1742748684402,0.05505423,132.18,132.16,9.75614669]
[1742748685108,0.05505423,132.18,132.17,7.5673]
[1742748685405,0.05505423,132.18,132.16,9.75614669]
[1742748686607,0.05505423,132.18,132.17,9.70061965]
[1742748687304,0.05505423,132.18,132.17,17.26791965]
[1742748688010,0.05505423,132.18,132.16,0.05552704]
[1742748689509,7.5673,132.17,132.16,0.05552704]
[1742748689712,0.05505423,132.18,132.16,0.05552704]
[1742748691509,0.05505423,132.18,132.17,7.5673]
[1742748692309,0.05505423,132.18,132.16,7.62312704]
[1742748693709,0.05505423,132.18,132.17,7.5673]
[1742748698606,0.05505423,132.18,132.17,17.26791965]
[1742748698801,9.70061965,132.24,132.21,7.565]
[1742748699013,9.70061965,132.23,132.21,7.565]
[1742748699515,17.26441965,132.24,132.21,7.565]
[1742748699711,20.39447785,132.27,132.22,36.76061965]
[1742748699907,0.05048552,132.24,132.22,36.76061965]
[1742748701011,0.05048552,132.24,132.22,44.32481965]
[1742748702015,0.05048552,132.24,132.23,9.70061965]
[1742748703413,0.05048552,132.24,132.22,44.32481965]
[1742748705007,0.05048552,132.24,132.22,44.32461965]
[1742748707915,0.05048552,132.24,132.22,27.06]
[1742748707916,7.61398552,132.24,132.22,27.06]
[1742748708718,7.5639,132.23,132.22,27.06]
[1742748708922,9.70061965,132.23,132.21,0.04916785]
[1742748709115,0.05048552,132.24,132.21,0.04916785]
[1742748709819,7.564,132.23,132.21,0.04916785]
[1742748710618,7.564,132.23,132.21,7.61416785]
[1742748710820,7.61408552,132.24,132.21,7.61416785]
[1742748712218,7.5639,132.23,132.21,7.61416785]
[1742748712525,7.5639,132.23,132.21,0.04916785]
[1742748713425,7.5639,132.23,132.21,7.61416785]
[1742748713825,7.61408552,132.24,132.21,7.61416785]
[1742748717626,0.05048552,132.24,132.22,7.5644]
[1742748718825,7.61388552,132.24,132.21,7.61386785]
[1742748719526,0.05048552,132.24,132.22,7.5644]
[1742748719726,0.05048552,132.24,132.21,9.7497875]
[1742748720029,17.26511965,132.22,132.21,0.04916785]
[1742748720921,36.76061965,132.22,132.16,36.76061965]
[1742748721119,9.70061965,132.19,132.16,27.06]
[1742748721320,9.70061965,132.18,132.15,7.5681]
[1742748721522,17.26751965,132.18,132.15,7.5681]
[1742748722119,17.31593998,132.18,132.15,7.61738812]
[1742748723428,7.61532033,132.18,132.15,17.31800777]
[1742748727232,0.04842033,132.18,132.15,9.74990777]
[1742748727835,7.5674,132.17,132.15,0.04928812]
[1742748728126,17.26801965,132.17,132.15,0.04928812]
[1742748728637,17.26801965,132.17,132.15,7.61768812]
[1742748729936,17.31603998,132.18,132.15,7.61768812]
[1742748730236,0.04842033,132.18,132.16,9.70061965]
[1742748730840,0.04842033,132.18,132.16,17.26831965]
[1742748732135,0.04842033,132.18,132.17,7.5673]
[1742748732736,0.04842033,132.18,132.17,17.26791965]
[1742748736944,374.99341965,132.24,132.21,7.565]
[1742748738045,375.04740667,132.24,132.21,7.61743119]
[1742748738444,7.5639,132.23,132.21,7.61743119]
[1742748739348,7.5645,132.22,132.21,0.05243119]
[1742748742448,9.70061965,132.22,132.16,27.06]
[1742748742752,9.70061965,132.2,132.16,36.76061965]
[1742748743247,7.5664,132.19,132.16,44.32801965]
[1742748743447,7.5664,132.19,132.16,17.26801965]
[1742748743649,7.61898452,132.19,132.16,17.31948704]
[1742748744344,7.5671,132.18,132.16,0.05146739]
[1742748744540,9.70061965,132.18,132.16,0.05146739]